[Event "Early-Titled-Tuesday-Blitz-February-27-2024"]
[Site "Chess.com"]
[Date "2024.02.27"]
[Round "2"]
[White "PabloZarnicki"]
[Black "vugarrasulov"]
[Result "0-1"]
[WhiteElo "2630"]
[BlackElo "3005"]
[TimeControl "180+1"]
[EndTime "8:17:37 PST"]
[Termination "vugarrasulov won on time"]

1. e4 {[%clk 0:03:00.9]} 1... e5 {[%clk 0:02:59.8]} 2. Nf3 {[%clk 0:03:00.9]}
2... Nc6 {[%clk 0:03:00.4]} 3. Nc3 {[%clk 0:03:01.4]} 3... Nf6 {[%clk
0:03:00.2]} 4. d4 {[%clk 0:03:01.6]} 4... exd4 {[%clk 0:03:00.7]} 5. Nxd4 {[%clk
0:03:02.5]} 5... d6 {[%clk 0:02:59.2]} 6. Bb5 {[%clk 0:03:00.9]} 6... Bd7 {[%clk
0:02:59]} 7. Bxc6 {[%clk 0:02:59]} 7... bxc6 {[%clk 0:02:59.9]} 8. O-O {[%clk
0:02:59]} 8... Be7 {[%clk 0:02:59.7]} 9. Qf3 {[%clk 0:02:59]} 9... O-O {[%clk
0:02:57.9]} 10. e5 {[%clk 0:02:59.4]} 10... dxe5 {[%clk 0:02:57]} 11. Nxc6
{[%clk 0:02:59.5]} 11... Bxc6 {[%clk 0:02:46.6]} 12. Qxc6 {[%clk 0:03:00.4]}
12... h6 {[%clk 0:02:44.2]} 13. Rd1 {[%clk 0:02:53.7]} 13... Qc8 {[%clk
0:02:33]} 14. b3 {[%clk 0:02:53.7]} 14... a5 {[%clk 0:02:30.7]} 15. Be3 {[%clk
0:02:53.1]} 15... Ra6 {[%clk 0:02:30.8]} 16. Qc4 {[%clk 0:02:52.1]} 16... Qb7
{[%clk 0:02:21.7]} 17. Nd5 {[%clk 0:02:43.8]} 17... Nxd5 {[%clk 0:02:19.8]} 18.
Qxd5 {[%clk 0:02:44]} 18... Qxd5 {[%clk 0:02:16.5]} 19. Rxd5 {[%clk 0:02:42.9]}
19... a4 {[%clk 0:02:17.4]} 20. Rad1 {[%clk 0:02:32.6]} 20... axb3 {[%clk
0:02:09.9]} 21. axb3 {[%clk 0:02:33.5]} 21... Rc6 {[%clk 0:02:02.1]} 22. c4
{[%clk 0:01:56.8]} 22... f6 {[%clk 0:02:01.9]} 23. g3 {[%clk 0:01:49]} 23... Kf7
{[%clk 0:02:01.7]} 24. Ra1 {[%clk 0:01:40]} 24... Rb8 {[%clk 0:01:57.1]} 25. Rb5
{[%clk 0:01:38.5]} 25... Rxb5 {[%clk 0:01:51.4]} 26. cxb5 {[%clk 0:01:39.4]}
26... Rc3 {[%clk 0:01:51.5]} 27. Ra7 {[%clk 0:01:38.9]} 27... Ke6 {[%clk
0:01:49.7]} 28. Rb7 {[%clk 0:01:24.5]} 28... Rxb3 {[%clk 0:01:46.8]} 29. Rxc7
{[%clk 0:01:03.3]} 29... Rxb5 {[%clk 0:01:46.8]} 30. Kg2 {[%clk 0:01:03.4]}
30... h5 {[%clk 0:01:44.9]} 31. h4 {[%clk 0:01:02.9]} 31... g6 {[%clk
0:01:42.2]} 32. Rc6+ {[%clk 0:01:02.7]} 32... Kf5 {[%clk 0:01:40.8]} 33. Rc7
{[%clk 0:01:01.8]} 33... Bb4 {[%clk 0:01:37.6]} 34. Rc6 {[%clk 0:00:57.7]} 34...
Rd5 {[%clk 0:01:34.1]} 35. Rb6 {[%clk 0:00:55]} 35... Bd6 {[%clk 0:01:33.8]} 36.
Rb7 {[%clk 0:00:54.2]} 36... e4 {[%clk 0:01:27.3]} 37. Rd7 {[%clk 0:00:52.6]}
37... Rd3 {[%clk 0:01:25.8]} 38. Rd8 {[%clk 0:00:48.9]} 38... Be5 {[%clk
0:01:21.9]} 39. Re8 {[%clk 0:00:38.4]} 39... Rb3 {[%clk 0:01:16.5]} 40. Ra8
{[%clk 0:00:37.8]} 40... Rd3 {[%clk 0:01:12.2]} 41. Ra4 {[%clk 0:00:37.3]} 41...
Rd5 {[%clk 0:01:07.2]} 42. Rc4 {[%clk 0:00:36.7]} 42... g5 {[%clk 0:01:07.3]}
43. hxg5 {[%clk 0:00:36.3]} 43... fxg5 {[%clk 0:01:08.2]} 44. Rc8 {[%clk
0:00:36.4]} 44... g4 {[%clk 0:01:06.1]} 45. Rg8 {[%clk 0:00:33.7]} 45... Bf6
{[%clk 0:01:03.8]} 46. Rf8 {[%clk 0:00:33.9]} 46... Rd7 {[%clk 0:00:56.8]} 47.
Bc1 {[%clk 0:00:31.5]} 47... Kg6 {[%clk 0:00:53.3]} 48. Re8 {[%clk 0:00:31.8]}
48... Re7 {[%clk 0:00:52.7]} 49. Ra8 {[%clk 0:00:28.1]} 49... Bd4 {[%clk
0:00:47.9]} 50. Ra6+ {[%clk 0:00:25.2]} 50... Kf5 {[%clk 0:00:46]} 51. Ra5+
{[%clk 0:00:25]} 51... Re5 {[%clk 0:00:45.1]} 52. Rxe5+ {[%clk 0:00:24.9]} 52...
Kxe5 {[%clk 0:00:45.1]} 53. Bh6 {[%clk 0:00:24.8]} 53... Kd5 {[%clk 0:00:45]}
54. Bg5 {[%clk 0:00:24.5]} 54... Kc4 {[%clk 0:00:45.3]} 55. Bf4 {[%clk
0:00:24.5]} 55... Kd3 {[%clk 0:00:45.7]} 56. Bg5 {[%clk 0:00:24.5]} 56... Ke2
{[%clk 0:00:45.6]} 0-1

[Event "Early-Titled-Tuesday-Blitz-February-27-2024"]
[Site "Chess.com"]
[Date "2024.02.27"]
[Round "2"]
[White "WilsonPalencia21"]
[Black "Zampronha1971"]
[Result "1-0"]
[WhiteElo "2559"]
[BlackElo "2346"]
[TimeControl "180+1"]
[EndTime "8:17:38 PST"]
[Termination "WilsonPalencia21 won on time"]

1. d4 {[%clk 0:01:47.3]} 1... Nf6 {[%clk 0:02:58.9]} 2. c4 {[%clk 0:01:47.9]}
2... c5 {[%clk 0:02:59]} 3. d5 {[%clk 0:01:47.6]} 3... e6 {[%clk 0:02:59.6]} 4.
Nf3 {[%clk 0:01:47.4]} 4... exd5 {[%clk 0:02:59.6]} 5. cxd5 {[%clk 0:01:48.3]}
5... d6 {[%clk 0:03:00.1]} 6. g3 {[%clk 0:01:46.9]} 6... g6 {[%clk 0:03:00.6]}
7. Bg2 {[%clk 0:01:47.3]} 7... Bg7 {[%clk 0:03:01.2]} 8. O-O {[%clk 0:01:48.2]}
8... O-O {[%clk 0:03:01.2]} 9. Nc3 {[%clk 0:01:46.8]} 9... a6 {[%clk 0:03:01.4]}
10. a4 {[%clk 0:01:46.5]} 10... Re8 {[%clk 0:03:02]} 11. Nd2 {[%clk 0:01:46.7]}
11... Nbd7 {[%clk 0:02:55.8]} 12. Nc4 {[%clk 0:01:45.9]} 12... Nb6 {[%clk
0:02:45.3]} 13. Na3 {[%clk 0:01:45.1]} 13... Rb8 {[%clk 0:02:45.2]} 14. h3
{[%clk 0:01:43.7]} 14... Na8 {[%clk 0:02:39.4]} 15. e4 {[%clk 0:01:39.4]} 15...
Nc7 {[%clk 0:02:27.4]} 16. a5 {[%clk 0:01:35.6]} 16... b5 {[%clk 0:02:23.6]} 17.
axb6 {[%clk 0:01:34.3]} 17... Rxb6 {[%clk 0:02:24.2]} 18. Nc4 {[%clk 0:01:34.9]}
18... Rb8 {[%clk 0:02:21.9]} 19. Bf4 {[%clk 0:01:33.4]} 19... Bf8 {[%clk
0:02:20.1]} 20. Na5 {[%clk 0:01:25.8]} 20... Bd7 {[%clk 0:02:06.5]} 21. Qc2
{[%clk 0:01:24.8]} 21... Nb5 {[%clk 0:02:05.3]} 22. Nxb5 {[%clk 0:01:20.7]}
22... axb5 {[%clk 0:02:05.3]} 23. Rfe1 {[%clk 0:01:17.4]} 23... Ra8 {[%clk
0:01:59.1]} 24. Nc6 {[%clk 0:00:46.3]} 24... Bxc6 {[%clk 0:01:48.7]} 25. dxc6
{[%clk 0:00:45.5]} 25... Rxa1 {[%clk 0:01:49.6]} 26. Rxa1 {[%clk 0:00:45]} 26...
Qb6 {[%clk 0:01:50.5]} 27. b4 {[%clk 0:00:41.9]} 27... Rc8 {[%clk 0:01:17.5]}
28. bxc5 {[%clk 0:00:40.5]} 28... dxc5 {[%clk 0:01:18.4]} 29. e5 {[%clk
0:00:40.2]} 29... Nh5 {[%clk 0:01:17.3]} 30. Be3 {[%clk 0:00:39.3]} 30... Ng7
{[%clk 0:00:43.9]} 31. f4 {[%clk 0:00:37]} 31... Ne6 {[%clk 0:00:42.9]} 32. Qe4
{[%clk 0:00:27.8]} 32... b4 {[%clk 0:00:32.3]} 33. Qc4 {[%clk 0:00:20.2]} 33...
Nd4 {[%clk 0:00:20.6]} 34. Bxd4 {[%clk 0:00:18.6]} 34... cxd4 {[%clk 0:00:21.5]}
35. Rb1 {[%clk 0:00:18.5]} 35... d3+ {[%clk 0:00:19.9]} 36. Kh2 {[%clk
0:00:18.2]} 36... d2 {[%clk 0:00:20.5]} 37. Qd3 {[%clk 0:00:17.6]} 37... Qf2
{[%clk 0:00:16.7]} 38. Rd1 {[%clk 0:00:16.9]} 38... g5 {[%clk 0:00:13.7]} 39.
Rxd2 {[%clk 0:00:16.7]} 39... Qe1 {[%clk 0:00:12.7]} 40. Re2 {[%clk 0:00:16.6]}
40... Qc1 {[%clk 0:00:12.4]} 41. Qf5 {[%clk 0:00:14.7]} 41... gxf4 {[%clk
0:00:10.6]} 42. Qxc8 {[%clk 0:00:07.3]} 42... fxg3+ {[%clk 0:00:11.5]} 43. Kxg3
{[%clk 0:00:07.3]} 43... Qg5+ {[%clk 0:00:03]} 44. Qg4 {[%clk 0:00:07.8]} 1-0

[Event "Early-Titled-Tuesday-Blitz-February-27-2024"]
[Site "Chess.com"]
[Date "2024.02.27"]
[Round "2"]
[White "Agent-JL"]
[Black "Anton_Demchenko"]
[Result "0-1"]
[WhiteElo "2605"]
[BlackElo "2908"]
[TimeControl "180+1"]
[EndTime "8:17:39 PST"]
[Termination "Anton_Demchenko won by resignation"]

1. d4 {[%clk 0:03:00.9]} 1... Nf6 {[%clk 0:03:00]} 2. Nf3 {[%clk 0:02:59.9]}
2... g6 {[%clk 0:02:59.1]} 3. c4 {[%clk 0:03:00.1]} 3... Bg7 {[%clk 0:02:59.7]}
4. Nc3 {[%clk 0:02:59.9]} 4... O-O {[%clk 0:03:00.2]} 5. e4 {[%clk 0:03:00.5]}
5... d6 {[%clk 0:03:00.8]} 6. Be2 {[%clk 0:03:01.2]} 6... Nbd7 {[%clk
0:03:01.4]} 7. O-O {[%clk 0:03:01.9]} 7... e5 {[%clk 0:03:02.1]} 8. Be3 {[%clk
0:02:58.7]} 8... c6 {[%clk 0:03:00.4]} 9. Qc2 {[%clk 0:02:51.8]} 9... Ng4 {[%clk
0:02:58.4]} 10. Bg5 {[%clk 0:02:51.7]} 10... f6 {[%clk 0:02:59.1]} 11. Bh4
{[%clk 0:02:51.5]} 11... Qe8 {[%clk 0:02:49.9]} 12. dxe5 {[%clk 0:02:39.9]}
12... dxe5 {[%clk 0:02:47.4]} 13. b4 {[%clk 0:02:24.9]} 13... h5 {[%clk
0:02:21.5]} 14. h3 {[%clk 0:02:20.4]} 14... Nh6 {[%clk 0:02:21.8]} 15. c5 {[%clk
0:02:12.1]} 15... Nf7 {[%clk 0:02:15.9]} 16. Nd2 {[%clk 0:02:06.9]} 16... Kh7
{[%clk 0:02:06.1]} 17. Nc4 {[%clk 0:02:04.4]} 17... Rg8 {[%clk 0:02:06.5]} 18.
Rad1 {[%clk 0:01:49.6]} 18... Nf8 {[%clk 0:02:07]} 19. Nd6 {[%clk 0:01:44.1]}
19... Nxd6 {[%clk 0:02:06.4]} 20. Rxd6 {[%clk 0:01:42.4]} 20... Be6 {[%clk
0:02:06.9]} 21. Qd1 {[%clk 0:01:36.6]} 21... Qf7 {[%clk 0:01:29.7]} 22. g4
{[%clk 0:00:57.8]} 22... g5 {[%clk 0:01:25.8]} 23. Bg3 {[%clk 0:00:54.4]} 23...
h4 {[%clk 0:01:26.4]} 24. Bh2 {[%clk 0:00:54.8]} 24... Ng6 {[%clk 0:01:21.6]}
25. Qc2 {[%clk 0:00:35.8]} 25... Bf8 {[%clk 0:01:21.4]} 26. Rd2 {[%clk 0:00:34]}
26... a5 {[%clk 0:01:21.7]} 27. a3 {[%clk 0:00:33.3]} 27... axb4 {[%clk
0:01:21.5]} 28. axb4 {[%clk 0:00:34.2]} 28... Be7 {[%clk 0:01:20.8]} 29. Rfd1
{[%clk 0:00:33.3]} 29... Rgd8 {[%clk 0:01:18.8]} 30. Rxd8 {[%clk 0:00:28.4]}
30... Rxd8 {[%clk 0:01:19.5]} 31. Rxd8 {[%clk 0:00:27.6]} 31... Bxd8 {[%clk
0:01:20.4]} 32. f3 {[%clk 0:00:24.7]} 32... b6 {[%clk 0:01:13.6]} 33. Qd3 {[%clk
0:00:18.9]} 33... Qe7 {[%clk 0:01:05.8]} 34. Qd6 {[%clk 0:00:14.6]} 34... Qxd6
{[%clk 0:00:48.1]} 35. cxd6 {[%clk 0:00:15.5]} 35... Kg8 {[%clk 0:00:48.3]} 36.
Kf2 {[%clk 0:00:16]} 36... Kf7 {[%clk 0:00:48.7]} 37. Ke3 {[%clk 0:00:14.9]}
37... Ke8 {[%clk 0:00:49.2]} 38. Bg1 {[%clk 0:00:15.5]} 38... Kd7 {[%clk
0:00:49.4]} 39. Kd2 {[%clk 0:00:16.1]} 39... Kxd6 {[%clk 0:00:49.7]} 40. Na4
{[%clk 0:00:16.9]} 40... Nf4 {[%clk 0:00:42.8]} 41. Bf1 {[%clk 0:00:13.8]} 41...
b5 {[%clk 0:00:37.5]} 42. Nc5 {[%clk 0:00:14.4]} 42... Bc4 {[%clk 0:00:37.9]}
43. Nb7+ {[%clk 0:00:12.2]} 43... Kc7 {[%clk 0:00:36.9]} 44. Nxd8 {[%clk
0:00:12.1]} 44... Kxd8 {[%clk 0:00:37.5]} 45. Bxc4 {[%clk 0:00:11.1]} 45... bxc4
{[%clk 0:00:38.4]} 46. Kc3 {[%clk 0:00:11.6]} 46... Nxh3 {[%clk 0:00:37.3]} 47.
Bh2 {[%clk 0:00:11.8]} 47... Nf4 {[%clk 0:00:34.5]} 48. Kxc4 {[%clk 0:00:12.1]}
48... Ne6 {[%clk 0:00:31.6]} 49. Bg1 {[%clk 0:00:11.2]} 49... Nd4 {[%clk
0:00:23]} 50. Bxd4 {[%clk 0:00:05.9]} 50... exd4 {[%clk 0:00:23.5]} 51. Kxd4
{[%clk 0:00:06.3]} 51... h3 {[%clk 0:00:23.9]} 52. f4 {[%clk 0:00:05.9]} 52...
h2 {[%clk 0:00:23.9]} 53. fxg5 {[%clk 0:00:05.4]} 53... fxg5 {[%clk 0:00:24.2]}
0-1

[Event "Early-Titled-Tuesday-Blitz-February-27-2024"]
[Site "Chess.com"]
[Date "2024.02.27"]
[Round "2"]
[White "sotochess"]
[Black "ChessLover0108"]
[Result "0-1"]
[WhiteElo "2628"]
[BlackElo "2963"]
[TimeControl "180+1"]
[EndTime "8:17:40 PST"]
[Termination "ChessLover0108 won by resignation"]

1. e4 {[%clk 0:03:00]} 1... c5 {[%clk 0:02:59.1]} 2. Nf3 {[%clk 0:02:57.2]} 2...
d6 {[%clk 0:02:59.4]} 3. d4 {[%clk 0:02:54.1]} 3... cxd4 {[%clk 0:03:00.3]} 4.
Nxd4 {[%clk 0:02:54.6]} 4... Nf6 {[%clk 0:03:01]} 5. f3 {[%clk 0:02:54.1]} 5...
Nc6 {[%clk 0:02:59.7]} 6. c4 {[%clk 0:02:50.1]} 6... e6 {[%clk 0:02:59.9]} 7.
Nc3 {[%clk 0:02:48.2]} 7... Be7 {[%clk 0:02:59.3]} 8. Be3 {[%clk 0:02:48.1]}
8... O-O {[%clk 0:02:58.1]} 9. Qd2 {[%clk 0:02:48]} 9... d5 {[%clk 0:02:52]} 10.
cxd5 {[%clk 0:02:36.2]} 10... exd5 {[%clk 0:02:52.9]} 11. Nxc6 {[%clk
0:02:36.2]} 11... bxc6 {[%clk 0:02:48.1]} 12. exd5 {[%clk 0:02:29.6]} 12... cxd5
{[%clk 0:02:36.5]} 13. Be2 {[%clk 0:02:20.8]} 13... Re8 {[%clk 0:02:27.8]} 14.
O-O {[%clk 0:02:14.7]} 14... Be6 {[%clk 0:02:09.4]} 15. Bb5 {[%clk 0:02:12.7]}
15... Rf8 {[%clk 0:02:02.8]} 16. Rfd1 {[%clk 0:02:11.5]} 16... h6 {[%clk
0:01:45.3]} 17. Bc6 {[%clk 0:01:56.9]} 17... Rc8 {[%clk 0:01:45.1]} 18. Bxd5
{[%clk 0:01:56.3]} 18... Rxc3 {[%clk 0:01:18.4]} 19. Bxe6 {[%clk 0:01:54.8]}
19... Rxe3 {[%clk 0:01:18.2]} 20. Qxe3 {[%clk 0:01:53.9]} 20... Qa5 {[%clk
0:01:17.8]} 21. Kh1 {[%clk 0:01:28.9]} 21... Bc5 {[%clk 0:01:09.8]} 22. Qb3
{[%clk 0:01:04.2]} 22... fxe6 {[%clk 0:01:08.9]} 23. Qxe6+ {[%clk 0:01:05.1]}
23... Kh8 {[%clk 0:01:09.1]} 24. a3 {[%clk 0:01:04.9]} 24... Bb6 {[%clk
0:01:01.3]} 25. Rac1 {[%clk 0:01:00.3]} 25... Nh5 {[%clk 0:00:29.7]} 26. Rc8
{[%clk 0:00:28.6]} 26... Ng3+ {[%clk 0:00:25]} 27. hxg3 {[%clk 0:00:26.6]} 27...
Qh5+ {[%clk 0:00:25.9]} 28. Qh3 {[%clk 0:00:27]} 28... Qxh3+ {[%clk 0:00:26.2]}
29. gxh3 {[%clk 0:00:27.7]} 29... Rxc8 {[%clk 0:00:27.1]} 30. Rd2 {[%clk
0:00:26]} 30... Kg8 {[%clk 0:00:17.9]} 31. Kg2 {[%clk 0:00:24.9]} 31... Kf7
{[%clk 0:00:17.9]} 32. h4 {[%clk 0:00:25]} 32... Ke6 {[%clk 0:00:17.8]} 33. h5
{[%clk 0:00:21.9]} 33... Ke5 {[%clk 0:00:17.7]} 34. Kh3 {[%clk 0:00:21.7]} 34...
Bd4 {[%clk 0:00:17.3]} 35. Kg4 {[%clk 0:00:20.5]} 35... Rc4 {[%clk 0:00:12.6]}
36. f4+ {[%clk 0:00:19.9]} 36... Ke4 {[%clk 0:00:13.1]} 37. b4 {[%clk
0:00:16.9]} 37... Rc3 {[%clk 0:00:12.5]} 38. Re2+ {[%clk 0:00:17]} 38... Kd3
{[%clk 0:00:06.3]} 39. Ra2 {[%clk 0:00:17.3]} 39... Kc4 {[%clk 0:00:06]} 40. Kf5
{[%clk 0:00:17.2]} 40... Rxg3 {[%clk 0:00:06.1]} 41. Rc2+ {[%clk 0:00:17.1]}
41... Kd5 {[%clk 0:00:06.6]} 42. a4 {[%clk 0:00:16.4]} 42... Ra3 {[%clk
0:00:05.8]} 43. a5 {[%clk 0:00:16.3]} 43... Rb3 {[%clk 0:00:06.3]} 0-1

[Event "Early-Titled-Tuesday-Blitz-February-27-2024"]
[Site "Chess.com"]
[Date "2024.02.27"]
[Round "2"]
[White "bolwin"]
[Black "losersgame"]
[Result "0-1"]
[WhiteElo "2253"]
[BlackElo "2518"]
[TimeControl "180+1"]
[EndTime "8:17:40 PST"]
[Termination "losersgame won by resignation"]

1. Nf3 {[%clk 0:03:00]} 1... Nc6 {[%clk 0:02:59.4]} 2. c4 {[%clk 0:03:00.9]}
2... e5 {[%clk 0:02:59.2]} 3. Nc3 {[%clk 0:03:00.2]} 3... f5 {[%clk 0:02:58.5]}
4. d3 {[%clk 0:02:59.7]} 4... Nf6 {[%clk 0:02:54.5]} 5. g3 {[%clk 0:02:59.8]}
5... Bc5 {[%clk 0:02:54]} 6. Bg2 {[%clk 0:02:59.9]} 6... d6 {[%clk 0:02:54.1]}
7. O-O {[%clk 0:02:59.9]} 7... a6 {[%clk 0:02:54.4]} 8. a3 {[%clk 0:03:00.3]}
8... Ba7 {[%clk 0:02:54.1]} 9. b4 {[%clk 0:02:59.5]} 9... O-O {[%clk 0:02:46.1]}
10. e3 {[%clk 0:02:59.7]} 10... Qe8 {[%clk 0:02:40]} 11. d4 {[%clk 0:02:58.8]}
11... e4 {[%clk 0:02:22.9]} 12. Nd2 {[%clk 0:02:58.4]} 12... Ne7 {[%clk
0:02:20.6]} 13. d5 {[%clk 0:02:45.4]} 13... Ng6 {[%clk 0:02:17.7]} 14. Nb3
{[%clk 0:02:44.9]} 14... Ne5 {[%clk 0:02:16.3]} 15. c5 {[%clk 0:02:37.5]} 15...
Bd7 {[%clk 0:01:50.6]} 16. Qe2 {[%clk 0:02:14.2]} 16... Kh8 {[%clk 0:01:42.1]}
17. Bb2 {[%clk 0:02:13.8]} 17... Nd3 {[%clk 0:01:20.8]} 18. Rfd1 {[%clk
0:02:12.3]} 18... dxc5 {[%clk 0:01:18.7]} 19. bxc5 {[%clk 0:02:11]} 19... Nxc5
{[%clk 0:01:18.9]} 20. Nxc5 {[%clk 0:02:03]} 20... Bxc5 {[%clk 0:01:18.4]} 21.
Rac1 {[%clk 0:01:43.9]} 21... Ng4 {[%clk 0:01:11.3]} 22. h3 {[%clk 0:01:35.4]}
22... Ne5 {[%clk 0:01:06.5]} 23. Nxe4 {[%clk 0:01:32]} 23... fxe4 {[%clk
0:01:06.6]} 24. Rxc5 {[%clk 0:01:31.1]} 24... Nf3+ {[%clk 0:01:06.8]} 25. Kf1
{[%clk 0:00:57.5]} 25... Bb5 {[%clk 0:01:06.1]} 26. Rxb5 {[%clk 0:00:52.5]}
26... Qxb5 {[%clk 0:01:07]} 27. Rc1 {[%clk 0:00:48]} 27... Rf7 {[%clk
0:00:53.9]} 28. h4 {[%clk 0:00:20.1]} 28... Raf8 {[%clk 0:00:51.7]} 29. Rc2
{[%clk 0:00:13.3]} 29... Nd2+ {[%clk 0:00:34.6]} 30. Ke1 {[%clk 0:00:12.9]}
30... Qxe2+ {[%clk 0:00:31.9]} 31. Kxe2 {[%clk 0:00:13]} 31... Rxf2+ {[%clk
0:00:32.5]} 32. Ke1 {[%clk 0:00:13.1]} 32... Rxg2 {[%clk 0:00:28.4]} 33. Rxd2
{[%clk 0:00:13]} 33... Rxd2 {[%clk 0:00:25.8]} 34. Kxd2 {[%clk 0:00:13.3]} 34...
Rf2+ {[%clk 0:00:26.3]} 35. Kc1 {[%clk 0:00:13.1]} 35... Rf3 {[%clk 0:00:26.9]}
36. Be5 {[%clk 0:00:12.2]} 36... Rxe3 {[%clk 0:00:17.9]} 37. Bxc7 {[%clk
0:00:11.7]} 37... Rd3 {[%clk 0:00:17]} 38. d6 {[%clk 0:00:11.9]} 38... Kg8
{[%clk 0:00:17.3]} 39. Kc2 {[%clk 0:00:11.5]} 39... Kf7 {[%clk 0:00:17.4]} 40.
g4 {[%clk 0:00:11.8]} 40... Ke6 {[%clk 0:00:17.3]} 41. h5 {[%clk 0:00:11.9]}
41... Kd7 {[%clk 0:00:16.3]} 42. g5 {[%clk 0:00:11.9]} 42... Rg3 {[%clk
0:00:16.1]} 43. g6 {[%clk 0:00:11.5]} 43... hxg6 {[%clk 0:00:16.3]} 44. hxg6
{[%clk 0:00:12.4]} 44... Rxg6 {[%clk 0:00:16.9]} 45. Kd2 {[%clk 0:00:13.2]}
45... Rxd6+ {[%clk 0:00:17]} 46. Ke3 {[%clk 0:00:13.7]} 46... Kxc7 {[%clk
0:00:16.7]} 47. Kxe4 {[%clk 0:00:13.7]} 47... b5 {[%clk 0:00:16.4]} 48. Ke5
{[%clk 0:00:13.4]} 48... a5 {[%clk 0:00:16.6]} 0-1

[Event "Early-Titled-Tuesday-Blitz-February-27-2024"]
[Site "Chess.com"]
[Date "2024.02.27"]
[Round "2"]
[White "Rawnsdale"]
[Black "urano56"]
[Result "0-1"]
[WhiteElo "2518"]
[BlackElo "2318"]
[TimeControl "180+1"]
[EndTime "8:17:43 PST"]
[Termination "urano56 won by resignation"]

1. e4 {[%clk 0:03:00.9]} 1... c5 {[%clk 0:02:53.8]} 2. Nf3 {[%clk 0:03:00.7]}
2... d6 {[%clk 0:02:49.8]} 3. d4 {[%clk 0:03:00.8]} 3... cxd4 {[%clk 0:02:50.7]}
4. Nxd4 {[%clk 0:03:01.7]} 4... Nf6 {[%clk 0:02:50.5]} 5. Nc3 {[%clk 0:03:02.4]}
5... a6 {[%clk 0:02:51]} 6. Rg1 {[%clk 0:03:02.9]} 6... h5 {[%clk 0:02:44.7]} 7.
Bg5 {[%clk 0:03:02]} 7... Nbd7 {[%clk 0:02:43.6]} 8. Qd2 {[%clk 0:03:01]} 8...
Qc7 {[%clk 0:02:42.1]} 9. O-O-O {[%clk 0:03:00]} 9... e6 {[%clk 0:02:34.1]} 10.
Kb1 {[%clk 0:02:56.2]} 10... Be7 {[%clk 0:02:21.3]} 11. f4 {[%clk 0:02:55.9]}
11... b5 {[%clk 0:02:19.8]} 12. Bd3 {[%clk 0:02:47.3]} 12... Bb7 {[%clk
0:02:15]} 13. f5 {[%clk 0:02:32.8]} 13... Nc5 {[%clk 0:01:56.8]} 14. fxe6 {[%clk
0:02:29.3]} 14... fxe6 {[%clk 0:01:56.1]} 15. e5 {[%clk 0:02:10.1]} 15... dxe5
{[%clk 0:01:53.8]} 16. Bg6+ {[%clk 0:02:09.9]} 16... Kf8 {[%clk 0:01:52.3]} 17.
Nf3 {[%clk 0:02:05.1]} 17... Bxf3 {[%clk 0:01:47.3]} 18. gxf3 {[%clk 0:02:04.7]}
18... Rd8 {[%clk 0:01:38.3]} 19. Qf2 {[%clk 0:01:49.6]} 19... Rc8 {[%clk
0:01:19.1]} 20. Ne4 {[%clk 0:01:39.9]} 20... Na4 {[%clk 0:01:00.6]} 21. Rd2
{[%clk 0:01:15.7]} 21... Nd5 {[%clk 0:00:46.9]} 22. Bxe7+ {[%clk 0:01:05.7]}
22... Qxe7 {[%clk 0:00:44.6]} 23. Qg3 {[%clk 0:00:57.2]} 23... Nf4 {[%clk
0:00:39.4]} 24. Rgd1 {[%clk 0:00:54.9]} 24... Rh6 {[%clk 0:00:22.6]} 25. Nd6
{[%clk 0:00:27.6]} 25... Rd8 {[%clk 0:00:10.2]} 26. Be4 {[%clk 0:00:26.1]} 26...
h4 {[%clk 0:00:08.7]} 27. Qg4 {[%clk 0:00:19.9]} 27... Kg8 {[%clk 0:00:09]} 28.
Nf5 {[%clk 0:00:16.7]} 28... Rxd2 {[%clk 0:00:07]} 29. Nxh6+ {[%clk 0:00:17]}
29... Kf8 {[%clk 0:00:06.6]} 30. Rxd2 {[%clk 0:00:16.2]} 30... gxh6 {[%clk
0:00:06.7]} 31. Rd1 {[%clk 0:00:12.9]} 31... Qb4 {[%clk 0:00:05.5]} 32. b3
{[%clk 0:00:11.9]} 32... Nc3+ {[%clk 0:00:05.8]} 33. Kc1 {[%clk 0:00:12.4]}
33... Nfe2+ {[%clk 0:00:05.2]} 34. Kd2 {[%clk 0:00:09.6]} 34... Qd4+ {[%clk
0:00:04.1]} 35. Ke1 {[%clk 0:00:08.3]} 35... Qxd1+ {[%clk 0:00:03.5]} 36. Kf2
{[%clk 0:00:08.5]} 36... Nxe4+ {[%clk 0:00:03.1]} 37. fxe4 {[%clk 0:00:07.9]}
37... Nc3 {[%clk 0:00:01.4]} 38. Qxh4 {[%clk 0:00:03.4]} 38... Qxc2+ {[%clk
0:00:02]} 39. Kg3 {[%clk 0:00:03.6]} 39... Qd3+ {[%clk 0:00:02]} 40. Kg2 {[%clk
0:00:03.7]} 40... Qxe4+ {[%clk 0:00:02.9]} 41. Qxe4 {[%clk 0:00:02.6]} 41...
Nxe4 {[%clk 0:00:03.8]} 42. Kf3 {[%clk 0:00:03.5]} 42... Nc3 {[%clk 0:00:04.4]}
43. h3 {[%clk 0:00:04.4]} 43... Nxa2 {[%clk 0:00:05.3]} 44. Ke4 {[%clk
0:00:04.9]} 44... Nb4 {[%clk 0:00:06]} 45. Kxe5 {[%clk 0:00:05.5]} 45... Ke7
{[%clk 0:00:06.6]} 46. h4 {[%clk 0:00:05.6]} 46... Nc6+ {[%clk 0:00:07.2]} 47.
Ke4 {[%clk 0:00:05.9]} 47... Na5 {[%clk 0:00:08]} 48. h5 {[%clk 0:00:06.3]}
48... Nxb3 {[%clk 0:00:08.4]} 0-1